[Event "Live Chess"]
[Site "Chess.com"]
[Date "2024.06.02"]
[Round "-"]
[White "dmitro74"]
[Black "WelshTiger"]
[Result "1/2-1/2"]
[WhiteElo "1689"]
[BlackElo "2472"]
[TimeControl "300"]
[EndTime "16:26:03 PDT"]
[Termination "Game drawn by repetition"]

1. d4 {[%clk 0:04:58]} 1... d5 {[%clk 0:04:55.4]} 2. c4 {[%clk 0:04:56.3]} 2...
e6 {[%clk 0:04:54.4]} 3. Nc3 {[%clk 0:04:55.1]} 3... c5 {[%clk 0:04:53.3]} 4.
cxd5 {[%clk 0:04:52.6]} 4... exd5 {[%clk 0:04:52.6]} 5. e3 {[%clk 0:04:50.1]}
5... a6 {[%clk 0:04:50.6]} 6. a4 {[%clk 0:04:47.7]} 6... Nf6 {[%clk 0:04:46.5]}
7. Nf3 {[%clk 0:04:45.7]} 7... Nc6 {[%clk 0:04:45.3]} 8. dxc5 {[%clk 0:04:43]}
8... Bxc5 {[%clk 0:04:44]} 9. Bd3 {[%clk 0:04:41.7]} 9... O-O {[%clk 0:04:39.3]}
10. O-O {[%clk 0:04:40.2]} 10... Bg4 {[%clk 0:04:37.3]} 11. Be2 {[%clk
0:04:35.1]} 11... Re8 {[%clk 0:04:29.1]} 12. h3 {[%clk 0:04:32.6]} 12... Bh5
{[%clk 0:04:27.7]} 13. Nd4 {[%clk 0:04:27.9]} 13... Bxe2 {[%clk 0:04:26]} 14.
Ncxe2 {[%clk 0:04:25.8]} 14... Ne5 {[%clk 0:04:21.9]} 15. Bd2 {[%clk 0:04:19.2]}
15... Ne4 {[%clk 0:04:16.8]} 16. b4 {[%clk 0:04:15.2]} 16... Bf8 {[%clk
0:04:11.4]} 17. Nb3 {[%clk 0:04:07.1]} 17... Nc4 {[%clk 0:04:07.8]} 18. Bc3
{[%clk 0:04:01.2]} 18... Rc8 {[%clk 0:03:54.6]} 19. Rc1 {[%clk 0:03:56.8]} 19...
Qd7 {[%clk 0:03:16.6]} 20. Nbd4 {[%clk 0:03:53.1]} 20... Nxc3 {[%clk 0:03:12.1]}
21. Nxc3 {[%clk 0:03:48.4]} 21... Bxb4 {[%clk 0:03:11.2]} 22. Qb3 {[%clk
0:03:32.5]} 22... a5 {[%clk 0:02:56.4]} 23. Nf3 {[%clk 0:03:24.2]} 23... Qf5
{[%clk 0:02:34.8]} 24. Rfd1 {[%clk 0:03:20.5]} 24... Nb6 {[%clk 0:02:24.5]} 25.
Nd4 {[%clk 0:03:09.9]} 25... Qe5 {[%clk 0:02:19.1]} 26. Ncb5 {[%clk 0:02:49.9]}
26... Rc4 {[%clk 0:02:16.2]} 27. Nf3 {[%clk 0:02:34.5]} 27... Qe6 {[%clk
0:02:06.8]} 28. Nc7 {[%clk 0:02:25.8]} 28... Rxc1 {[%clk 0:01:53.9]} 29. Nxe6
{[%clk 0:02:23.5]} 29... Rxd1+ {[%clk 0:01:51.7]} 30. Qxd1 {[%clk 0:02:22.2]}
30... fxe6 {[%clk 0:01:51.1]} 31. Ne5 {[%clk 0:02:05.7]} 31... Rc8 {[%clk
0:01:28.4]} 32. f4 {[%clk 0:01:37.8]} 32... Bc5 {[%clk 0:01:26.9]} 33. Kf2
{[%clk 0:01:32.4]} 33... Bd6 {[%clk 0:01:14.9]} 34. Qg4 {[%clk 0:01:21.7]} 34...
Re8 {[%clk 0:01:03.6]} 35. Qh5 {[%clk 0:01:11.4]} 35... Re7 {[%clk 0:01:02.3]}
36. Nd3 {[%clk 0:01:01.8]} 36... Nc4 {[%clk 0:00:59.8]} 37. Kf3 {[%clk
0:00:57.3]} 37... g6 {[%clk 0:00:56.2]} 38. Qh4 {[%clk 0:00:48.7]} 38... Nd2+
{[%clk 0:00:52.4]} 39. Ke2 {[%clk 0:00:46.2]} 39... Ne4 {[%clk 0:00:52]} 40. Qe1
{[%clk 0:00:40.1]} 40... b6 {[%clk 0:00:47.3]} 41. Qc1 {[%clk 0:00:35.9]} 41...
Rc7 {[%clk 0:00:46.2]} 42. Qb2 {[%clk 0:00:31.4]} 42... Rc6 {[%clk 0:00:36.3]}
43. Ne5 {[%clk 0:00:29.4]} 43... Nc3+ {[%clk 0:00:30]} 44. Kf3 {[%clk
0:00:27.6]} 44... Bxe5 {[%clk 0:00:29.2]} 45. fxe5 {[%clk 0:00:25.5]} 45... Ne4
{[%clk 0:00:27.3]} 46. Qb5 {[%clk 0:00:22.4]} 46... Rc2 {[%clk 0:00:17.3]} 47.
Qxb6 {[%clk 0:00:18.8]} 47... Rf2+ {[%clk 0:00:15.4]} 48. Kg4 {[%clk 0:00:16.7]}
48... h5+ {[%clk 0:00:15.3]} 49. Kh4 {[%clk 0:00:14.2]} 49... Rxg2 {[%clk
0:00:14.2]} 50. Qxe6+ {[%clk 0:00:11.8]} 50... Kg7 {[%clk 0:00:13.7]} 51. Qe7+
{[%clk 0:00:10.8]} 51... Kh6 {[%clk 0:00:13.2]} 52. Qf8+ {[%clk 0:00:09.3]}
52... Kh7 {[%clk 0:00:12.5]} 53. Qf7+ {[%clk 0:00:08.3]} 53... Kh8 {[%clk
0:00:11.8]} 54. Qf8+ {[%clk 0:00:07.3]} 54... Kh7 {[%clk 0:00:11.1]} 55. Qf7+
{[%clk 0:00:06.6]} 55... Kh6 {[%clk 0:00:10.6]} 56. Qf8+ {[%clk 0:00:05.9]}
56... Kh7 {[%clk 0:00:10.1]} 1/2-1/2

[Event "Live Chess"]
[Site "Chess.com"]
[Date "2024.06.02"]
[Round "-"]
[White "TigerTank70"]
[Black "NebodarMatevich"]
[Result "1-0"]
[WhiteElo "2238"]
[BlackElo "1568"]
[TimeControl "300"]
[EndTime "16:26:07 PDT"]
[Termination "TigerTank70 won by resignation"]

1. e4 {[%clk 0:04:57.2]} 1... d5 {[%clk 0:04:59]} 2. exd5 {[%clk 0:04:56]} 2...
Qxd5 {[%clk 0:04:58.1]} 3. Nc3 {[%clk 0:04:55.6]} 3... Qd6 {[%clk 0:04:57.2]} 4.
d4 {[%clk 0:04:54.4]} 4... Nf6 {[%clk 0:04:56.4]} 5. Nf3 {[%clk 0:04:53.2]} 5...
a6 {[%clk 0:04:55.6]} 6. Be2 {[%clk 0:04:52.7]} 6... Nc6 {[%clk 0:04:54.5]} 7.
O-O {[%clk 0:04:52]} 7... Bf5 {[%clk 0:04:53.3]} 8. Be3 {[%clk 0:04:43.9]} 8...
O-O-O {[%clk 0:04:52.4]} 9. h3 {[%clk 0:04:28.4]} 9... e6 {[%clk 0:04:51.3]} 10.
Bd3 {[%clk 0:04:20.7]} 10... Bg6 {[%clk 0:04:47]} 11. Qe2 {[%clk 0:04:16.2]}
11... Bxd3 {[%clk 0:04:27.5]} 12. Qxd3 {[%clk 0:04:14.7]} 12... Nd5 {[%clk
0:04:20.5]} 13. a3 {[%clk 0:04:05.8]} 13... Nxe3 {[%clk 0:04:18.9]} 14. fxe3
{[%clk 0:04:00.7]} 14... f6 {[%clk 0:04:08.4]} 15. b4 {[%clk 0:03:59.3]} 15...
e5 {[%clk 0:04:01.5]} 16. b5 {[%clk 0:03:51.8]} 16... exd4 {[%clk 0:03:59.8]}
17. Ne4 {[%clk 0:03:49.8]} 17... Qe6 {[%clk 0:03:40.8]} 18. bxc6 {[%clk
0:03:44.7]} 18... dxe3 {[%clk 0:03:40]} 19. cxb7+ {[%clk 0:03:38.7]} 19... Kb8
{[%clk 0:03:36.2]} 20. Qxd8+ {[%clk 0:03:33.1]} 1-0

[Event "Live Chess"]
[Site "Chess.com"]
[Date "2024.06.02"]
[Round "-"]
[White "EPotapov05"]
[Black "IgorSchukin"]
[Result "0-1"]
[WhiteElo "1795"]
[BlackElo "1745"]
[TimeControl "300"]
[EndTime "16:26:09 PDT"]
[Termination "IgorSchukin won by resignation"]

1. d4 {[%clk 0:04:55.9]} 1... d5 {[%clk 0:04:58.9]} 2. c4 {[%clk 0:04:55]} 2...
e5 {[%clk 0:04:57.4]} 3. dxe5 {[%clk 0:04:52.8]} 3... d4 {[%clk 0:04:56.4]} 4.
a3 {[%clk 0:04:52]} 4... Nc6 {[%clk 0:04:55.5]} 5. e3 {[%clk 0:04:51]} 5... Nge7
{[%clk 0:04:50.4]} 6. Nf3 {[%clk 0:04:44]} 6... Bg4 {[%clk 0:04:48.2]} 7. Be2
{[%clk 0:04:42.1]} 7... Bxf3 {[%clk 0:04:45]} 8. Bxf3 {[%clk 0:04:40.8]} 8...
Ng6 {[%clk 0:04:44.4]} 9. exd4 {[%clk 0:04:37.5]} 9... Nxd4 {[%clk 0:04:41.5]}
10. Bxb7 {[%clk 0:04:27.5]} 10... Rb8 {[%clk 0:04:39.8]} 11. Be4 {[%clk
0:04:22.2]} 11... Nxe5 {[%clk 0:04:37.7]} 12. O-O {[%clk 0:04:16.4]} 12... Bc5
{[%clk 0:04:30.4]} 13. b4 {[%clk 0:04:08.8]} 13... Be7 {[%clk 0:04:27.5]} 14.
Bb2 {[%clk 0:03:55]} 14... c5 {[%clk 0:04:17.9]} 15. Re1 {[%clk 0:03:32.8]}
15... Nxc4 {[%clk 0:04:11.6]} 16. Bxd4 {[%clk 0:03:20.6]} 16... Qxd4 {[%clk
0:04:03.1]} 17. Bc6+ {[%clk 0:03:17.2]} 17... Kf8 {[%clk 0:03:58.9]} 18. Qxd4
{[%clk 0:03:05.3]} 18... cxd4 {[%clk 0:03:57]} 19. Rd1 {[%clk 0:02:54.5]} 19...
Bf6 {[%clk 0:03:54.5]} 20. Ra2 {[%clk 0:02:52.4]} 20... Ke7 {[%clk 0:03:49.8]}
21. Rc2 {[%clk 0:02:45.3]} 21... Ne5 {[%clk 0:03:41.8]} 22. Be4 {[%clk 0:02:43]}
22... Rhd8 {[%clk 0:03:36.2]} 23. Rc7+ {[%clk 0:02:37.3]} 23... Kf8 {[%clk
0:03:31.9]} 24. Rxa7 {[%clk 0:02:30.9]} 24... d3 {[%clk 0:03:23.3]} 25. f4
{[%clk 0:02:10.3]} 25... Nc4 {[%clk 0:03:09.4]} 26. Rxd3 {[%clk 0:02:08.2]}
26... Bd4+ {[%clk 0:03:02.3]} 27. Kf1 {[%clk 0:02:05.7]} 27... Bxa7 {[%clk
0:03:00.9]} 28. Rxd8+ {[%clk 0:02:01.7]} 28... Rxd8 {[%clk 0:02:58.8]} 0-1

[Event "Live Chess"]
[Site "Chess.com"]
[Date "2024.06.02"]
[Round "-"]
[White "Crowded_House"]
[Black "KwikPhoenix"]
[Result "0-1"]
[WhiteElo "1727"]
[BlackElo "2445"]
[TimeControl "300"]
[EndTime "16:26:39 PDT"]
[Termination "KwikPhoenix won by resignation"]

1. d4 {[%clk 0:04:56.8]} 1... e5 {[%clk 0:04:57]} 2. dxe5 {[%clk 0:04:54.3]}
2... Nc6 {[%clk 0:04:56.6]} 3. Nf3 {[%clk 0:04:53.1]} 3... Qe7 {[%clk
0:04:56.2]} 4. c3 {[%clk 0:04:52.5]} 4... Nxe5 {[%clk 0:04:55.3]} 5. Nxe5 {[%clk
0:04:51.6]} 5... Qxe5 {[%clk 0:04:54.5]} 6. Nd2 {[%clk 0:04:51.4]} 6... c6
{[%clk 0:04:50.9]} 7. Nf3 {[%clk 0:04:50.9]} 7... Qh5 {[%clk 0:04:48.9]} 8. e3
{[%clk 0:04:48.3]} 8... Nf6 {[%clk 0:04:47.5]} 9. Be2 {[%clk 0:04:47.3]} 9...
Qa5 {[%clk 0:04:45.8]} 10. Bd2 {[%clk 0:04:44.9]} 10... d5 {[%clk 0:04:44.2]}
11. c4 {[%clk 0:04:36.7]} 11... Qc7 {[%clk 0:04:43.5]} 12. cxd5 {[%clk
0:04:34.5]} 12... Nxd5 {[%clk 0:04:42.8]} 13. O-O {[%clk 0:04:26.7]} 13... Be7
{[%clk 0:04:37.8]} 14. Bc4 {[%clk 0:04:23.6]} 14... Nb6 {[%clk 0:04:36.7]} 15.
Bb3 {[%clk 0:04:20.6]} 15... O-O {[%clk 0:04:35.8]} 16. Ba5 {[%clk 0:04:19.1]}
16... Bf6 {[%clk 0:04:33.6]} 17. Qc2 {[%clk 0:04:13.1]} 17... Bg4 {[%clk
0:04:27.1]} 18. Nd2 {[%clk 0:03:36.6]} 18... Qe5 {[%clk 0:04:22.7]} 19. Bxb6
{[%clk 0:03:28.3]} 19... axb6 {[%clk 0:04:20.8]} 20. Rab1 {[%clk 0:03:23.6]}
20... Qh5 {[%clk 0:04:13.7]} 21. Ne4 {[%clk 0:02:58.1]} 21... Be5 {[%clk
0:04:07.4]} 22. Ng3 {[%clk 0:02:55.4]} 22... Bxg3 {[%clk 0:04:04.1]} 23. hxg3
{[%clk 0:02:54.4]} 23... Rfe8 {[%clk 0:03:59.8]} 24. Qd2 {[%clk 0:02:43.4]}
24... Be6 {[%clk 0:03:58.3]} 25. Bd1 {[%clk 0:02:37.8]} 25... Qg5 {[%clk
0:03:54.3]} 26. a3 {[%clk 0:02:32.8]} 26... Bc4 {[%clk 0:03:50.9]} 27. Be2
{[%clk 0:02:26.6]} 27... Bxe2 {[%clk 0:03:49.8]} 28. Qxe2 {[%clk 0:02:25.3]}
28... Re6 {[%clk 0:03:49.4]} 29. Rfd1 {[%clk 0:02:21.7]} 29... Qe7 {[%clk
0:03:35.2]} 30. Rd2 {[%clk 0:02:17.7]} 30... h6 {[%clk 0:03:33.9]} 31. Rbd1
{[%clk 0:02:16]} 31... Qf6 {[%clk 0:03:30.2]} 32. Rd7 {[%clk 0:02:12]} 32... Re7
{[%clk 0:03:29.2]} 33. Rxe7 {[%clk 0:02:05.7]} 33... Qxe7 {[%clk 0:03:27.7]} 34.
Qd2 {[%clk 0:02:01]} 34... Qf6 {[%clk 0:03:19.9]} 35. Qd4 {[%clk 0:01:58]} 35...
Qe6 {[%clk 0:03:11.4]} 36. Qd7 {[%clk 0:01:53]} 36... Qb3 {[%clk 0:03:08.6]} 37.
Rd2 {[%clk 0:01:43.5]} 37... Rf8 {[%clk 0:02:46.9]} 38. Qxb7 {[%clk 0:01:35.2]}
38... Qc4 {[%clk 0:02:46.5]} 39. Qd7 {[%clk 0:01:26.5]} 39... Qc1+ {[%clk
0:02:45.5]} 40. Kh2 {[%clk 0:01:24.9]} 40... c5 {[%clk 0:02:42.4]} 41. Qd3
{[%clk 0:01:22.3]} 41... Qe1 {[%clk 0:02:31.7]} 42. Qe2 {[%clk 0:01:19.1]} 42...
Qc1 {[%clk 0:02:25.2]} 43. Rc2 {[%clk 0:01:17.2]} 43... Qb1 {[%clk 0:02:24]} 44.
Qd2 {[%clk 0:01:12.5]} 44... Re8 {[%clk 0:02:17.7]} 45. Qc1 {[%clk 0:01:10.9]}
45... Qxc1 {[%clk 0:01:49.3]} 46. Rxc1 {[%clk 0:01:09.8]} 46... Rd8 {[%clk
0:01:49.2]} 47. Rc2 {[%clk 0:01:08.8]} 47... Rd3 {[%clk 0:01:48]} 48. Rc3 {[%clk
0:00:59.7]} 48... Rd2 {[%clk 0:01:45.4]} 49. Rb3 {[%clk 0:00:54.7]} 49... Rd6
{[%clk 0:01:44.6]} 50. a4 {[%clk 0:00:51.7]} 50... Kf8 {[%clk 0:01:43.4]} 51.
Rc3 {[%clk 0:00:47.2]} 51... Ke7 {[%clk 0:01:42]} 52. Rc2 {[%clk 0:00:44.7]}
52... Kd7 {[%clk 0:01:40.6]} 53. b3 {[%clk 0:00:43]} 53... Kc6 {[%clk
0:01:40.1]} 54. Rb2 {[%clk 0:00:41.4]} 54... Rd3 {[%clk 0:01:38.7]} 55. b4
{[%clk 0:00:39.4]} 55... c4 {[%clk 0:01:38.2]} 56. a5 {[%clk 0:00:37.2]} 56...
Ra3 {[%clk 0:01:34.7]} 57. axb6 {[%clk 0:00:35.5]} 57... Kxb6 {[%clk 0:01:33.5]}
58. Kg1 {[%clk 0:00:27.4]} 58... c3 {[%clk 0:01:31.7]} 59. Rc2 {[%clk
0:00:24.8]} 59... Kb5 {[%clk 0:01:29.8]} 60. Kf1 {[%clk 0:00:24.2]} 60... Kxb4
{[%clk 0:01:29.1]} 61. Ke2 {[%clk 0:00:23.9]} 61... Kc4 {[%clk 0:01:27.8]} 62.
f3 {[%clk 0:00:21.2]} 62... Rb3 {[%clk 0:01:27.1]} 63. e4 {[%clk 0:00:19.5]}
63... Rb2 {[%clk 0:01:25.9]} 64. Kd1 {[%clk 0:00:18.8]} 64... Kb3 {[%clk
0:01:24.9]} 65. Rxb2+ {[%clk 0:00:17]} 65... cxb2 {[%clk 0:01:24.8]} 66. Ke2
{[%clk 0:00:15.5]} 66... b1=Q {[%clk 0:01:24.3]} 67. Kf2 {[%clk 0:00:14.2]}
67... Kc3 {[%clk 0:01:22]} 0-1

[Event "Live Chess"]
[Site "Chess.com"]
[Date "2024.06.02"]
[Round "-"]
[White "koekoekoe"]
[Black "CheckThis4"]
[Result "0-1"]
[WhiteElo "1965"]
[BlackElo "2690"]
[TimeControl "300"]
[EndTime "16:26:56 PDT"]
[Termination "CheckThis4 won by resignation"]

1. d4 {[%clk 0:04:58.5]} 1... Nf6 {[%clk 0:04:57.2]} 2. Bf4 {[%clk 0:04:58]}
2... c5 {[%clk 0:04:54.5]} 3. c3 {[%clk 0:04:56.1]} 3... cxd4 {[%clk 0:04:44.7]}
4. cxd4 {[%clk 0:04:56]} 4... Qb6 {[%clk 0:04:43.1]} 5. Qb3 {[%clk 0:04:52.8]}
5... Qxd4 {[%clk 0:04:37.7]} 6. e3 {[%clk 0:04:49.6]} 6... Qc5 {[%clk
0:04:32.6]} 7. Nd2 {[%clk 0:04:46.9]} 7... Nc6 {[%clk 0:04:29.2]} 8. Ngf3 {[%clk
0:04:44.4]} 8... d5 {[%clk 0:04:25.6]} 9. Bb5 {[%clk 0:04:39.2]} 9... Bd7 {[%clk
0:04:23.7]} 10. O-O {[%clk 0:04:36.1]} 10... a6 {[%clk 0:04:22.6]} 11. Rac1
{[%clk 0:04:30.6]} 11... Qxb5 {[%clk 0:04:20.2]} 12. Qxb5 {[%clk 0:04:27.6]}
12... axb5 {[%clk 0:04:20.1]} 13. Ne5 {[%clk 0:04:26.2]} 13... e6 {[%clk
0:04:16]} 14. Nxd7 {[%clk 0:04:22.7]} 14... Kxd7 {[%clk 0:04:14.2]} 15. Nb3
{[%clk 0:04:22.6]} 15... Bd6 {[%clk 0:04:12]} 16. Bxd6 {[%clk 0:04:17.3]} 16...
Kxd6 {[%clk 0:04:11.9]} 17. Nc5 {[%clk 0:04:16.4]} 17... Rhb8 {[%clk 0:04:08.7]}
18. Rfd1 {[%clk 0:04:14.4]} 18... Rxa2 {[%clk 0:04:06.4]} 19. e4 {[%clk
0:04:11.7]} 19... Rxb2 {[%clk 0:04:03.9]} 20. f4 {[%clk 0:04:02.2]} 20... Ke7
{[%clk 0:03:56.9]} 21. exd5 {[%clk 0:03:57.8]} 21... Nxd5 {[%clk 0:03:55.2]} 22.
Re1 {[%clk 0:03:56.6]} 22... Nxf4 {[%clk 0:03:52.2]} 23. g3 {[%clk 0:03:53.3]}
23... Ne2+ {[%clk 0:03:49]} 24. Kf1 {[%clk 0:03:52]} 24... Nxc1 {[%clk
0:03:47.4]} 0-1

[Event "Live Chess"]
[Site "Chess.com"]
[Date "2024.06.02"]
[Round "-"]
[White "GEMdzq"]
[Black "GwaryTek"]
[Result "0-1"]
[WhiteElo "2295"]
[BlackElo "1915"]
[TimeControl "300"]
[EndTime "16:27:17 PDT"]
[Termination "GwaryTek won by resignation"]

1. e4 {[%clk 0:04:57.8]} 1... Nf6 {[%clk 0:04:58.8]} 2. e5 {[%clk 0:04:56.2]}
2... Nd5 {[%clk 0:04:57.3]} 3. d4 {[%clk 0:04:55]} 3... d6 {[%clk 0:04:56.2]} 4.
Nf3 {[%clk 0:04:54.4]} 4... Bg4 {[%clk 0:04:54.1]} 5. Bc4 {[%clk 0:04:53.3]}
5... e6 {[%clk 0:04:52.6]} 6. O-O {[%clk 0:04:49.7]} 6... Be7 {[%clk 0:04:51]}
7. h3 {[%clk 0:04:48.4]} 7... Bh5 {[%clk 0:04:49.4]} 8. a3 {[%clk 0:04:41.4]}
8... O-O {[%clk 0:04:31.5]} 9. Bd3 {[%clk 0:04:39.4]} 9... Nc6 {[%clk
0:04:23.4]} 10. c4 {[%clk 0:04:32.8]} 10... Nb6 {[%clk 0:04:20.2]} 11. g4 {[%clk
0:04:28.3]} 11... Bg6 {[%clk 0:04:18.1]} 12. Bf4 {[%clk 0:04:14.4]} 12... dxe5
{[%clk 0:04:07.2]} 13. Nxe5 {[%clk 0:04:12.9]} 13... Nxd4 {[%clk 0:03:54.7]} 14.
Nxg6 {[%clk 0:04:09.5]} 14... hxg6 {[%clk 0:03:54.6]} 15. Nc3 {[%clk 0:04:06.2]}
15... c5 {[%clk 0:03:46]} 16. Bg3 {[%clk 0:03:59.5]} 16... Rc8 {[%clk
0:03:39.3]} 17. Rc1 {[%clk 0:03:57.4]} 17... Bh4 {[%clk 0:03:10.8]} 18. Bf4
{[%clk 0:03:50.4]} 18... Bg5 {[%clk 0:03:07.3]} 19. Bxg5 {[%clk 0:03:48]} 19...
Qxg5 {[%clk 0:03:05.5]} 20. Ne4 {[%clk 0:03:45.7]} 20... Qf4 {[%clk 0:02:53.1]}
21. Kg2 {[%clk 0:03:36.9]} 21... f5 {[%clk 0:02:31.7]} 22. gxf5 {[%clk
0:03:31.1]} 22... gxf5 {[%clk 0:02:22.8]} 23. Ng3 {[%clk 0:03:29.2]} 23... Rf6
{[%clk 0:02:20.2]} 24. Qh5 {[%clk 0:03:25.1]} 24... Rh6 {[%clk 0:02:14.9]} 25.
Ne2 {[%clk 0:03:11.2]} 25... Qxc1 {[%clk 0:01:41.6]} 26. Rxc1 {[%clk 0:02:55.2]}
26... Rxh5 {[%clk 0:01:37.6]} 27. Nxd4 {[%clk 0:02:48.7]} 27... cxd4 {[%clk
0:01:34.6]} 28. c5 {[%clk 0:02:48.2]} 28... Nd5 {[%clk 0:01:30.9]} 29. Bb5
{[%clk 0:02:44.2]} 29... a6 {[%clk 0:01:23.9]} 30. Bd7 {[%clk 0:02:42.5]} 30...
Rd8 {[%clk 0:01:11.1]} 31. Bxe6+ {[%clk 0:02:40.4]} 31... Kf8 {[%clk 0:01:09.9]}
32. Kg3 {[%clk 0:02:34.3]} 32... Ke7 {[%clk 0:01:00.8]} 33. Re1 {[%clk
0:02:31.3]} 33... Kf6 {[%clk 0:00:55.7]} 34. h4 {[%clk 0:02:18.5]} 34... f4+
{[%clk 0:00:48.3]} 35. Kg4 {[%clk 0:02:10.1]} 35... Re5 {[%clk 0:00:46.9]} 36.
Rxe5 {[%clk 0:02:07.7]} 36... Kxe5 {[%clk 0:00:45.1]} 37. Bxd5 {[%clk 0:02:07]}
37... Rxd5 {[%clk 0:00:43.3]} 38. c6 {[%clk 0:02:03.4]} 38... bxc6 {[%clk
0:00:41.9]} 39. Kf3 {[%clk 0:02:00.8]} 39... d3 {[%clk 0:00:37.9]} 0-1

[Event "Live Chess"]
[Site "Chess.com"]
[Date "2024.06.02"]
[Round "-"]
[White "vincents82"]
[Black "jimwad"]
[Result "1-0"]
[WhiteElo "2033"]
[BlackElo "1333"]
[TimeControl "300"]
[EndTime "16:27:32 PDT"]
[Termination "vincents82 won by resignation"]

1. e4 {[%clk 0:04:57.7]} 1... e5 {[%clk 0:04:58.9]} 2. Nf3 {[%clk 0:04:56.2]}
2... Nc6 {[%clk 0:04:57.8]} 3. Bb5 {[%clk 0:04:55.5]} 3... Nf6 {[%clk 0:04:56]}
4. d3 {[%clk 0:04:54.6]} 4... Bc5 {[%clk 0:04:54.1]} 5. O-O {[%clk 0:04:53.4]}
5... d6 {[%clk 0:04:52.5]} 6. c3 {[%clk 0:04:52.8]} 6... Bd7 {[%clk 0:04:50.6]}
7. Re1 {[%clk 0:04:46]} 7... O-O {[%clk 0:04:49.1]} 8. Nbd2 {[%clk 0:04:45.4]}
8... Ne7 {[%clk 0:04:46.6]} 9. Bxd7 {[%clk 0:04:43.6]} 9... Qxd7 {[%clk
0:04:45.6]} 10. Nf1 {[%clk 0:04:41.5]} 10... h6 {[%clk 0:04:43.7]} 11. Be3
{[%clk 0:04:40.7]} 11... Bxe3 {[%clk 0:04:40.9]} 12. Nxe3 {[%clk 0:04:39.7]}
12... Ng6 {[%clk 0:04:39.7]} 13. Nf5 {[%clk 0:04:38.2]} 13... Nf4 {[%clk
0:04:28]} 14. g3 {[%clk 0:04:36.8]} 14... Nh3+ {[%clk 0:04:24]} 15. Kg2 {[%clk
0:04:36]} 15... Ng5 {[%clk 0:04:22.1]} 16. Nxg5 {[%clk 0:04:32.9]} 16... hxg5
{[%clk 0:04:21.1]} 17. Rh1 {[%clk 0:04:30.8]} 17... Nh7 {[%clk 0:04:19.3]} 18.
h4 {[%clk 0:04:28.6]} 18... g6 {[%clk 0:04:16.2]} 19. Ne3 {[%clk 0:04:16.9]}
19... gxh4 {[%clk 0:04:06]} 20. Rxh4 {[%clk 0:04:13.6]} 20... Kg7 {[%clk
0:03:45]} 21. Nd5 {[%clk 0:04:05.9]} 21... c6 {[%clk 0:03:33.7]} 22. Rxh7+
{[%clk 0:04:03.3]} 22... Kxh7 {[%clk 0:03:31.9]} 23. Nf6+ {[%clk 0:04:02.5]} 1-0

[Event "Live Chess"]
[Site "Chess.com"]
[Date "2024.06.02"]
[Round "-"]
[White "toog"]
[Black "CarmelJane"]
[Result "1-0"]
[WhiteElo "2604"]
[BlackElo "2067"]
[TimeControl "300"]
[EndTime "16:27:55 PDT"]
[Termination "toog won by resignation"]

1. Nf3 {[%clk 0:04:55.6]} 1... c5 {[%clk 0:04:56.5]} 2. e3 {[%clk 0:04:52.1]}
2... g6 {[%clk 0:04:50]} 3. d4 {[%clk 0:04:47.8]} 3... Bg7 {[%clk 0:04:45.8]} 4.
Be2 {[%clk 0:04:46.1]} 4... cxd4 {[%clk 0:04:43.7]} 5. exd4 {[%clk 0:04:46]}
5... d5 {[%clk 0:04:41.6]} 6. O-O {[%clk 0:04:45.1]} 6... Nc6 {[%clk 0:04:40.7]}
7. c3 {[%clk 0:04:43.7]} 7... Bg4 {[%clk 0:04:36.1]} 8. Nbd2 {[%clk 0:04:42.2]}
8... e6 {[%clk 0:04:34.4]} 9. h3 {[%clk 0:04:39.4]} 9... Bxf3 {[%clk 0:04:32.6]}
10. Nxf3 {[%clk 0:04:39.3]} 10... Nf6 {[%clk 0:04:30.6]} 11. Re1 {[%clk
0:04:33.7]} 11... O-O {[%clk 0:04:26.8]} 12. Bd3 {[%clk 0:04:31]} 12... h6
{[%clk 0:04:22.9]} 13. Bf4 {[%clk 0:04:28.5]} 13... a6 {[%clk 0:04:16.4]} 14.
Qd2 {[%clk 0:04:27.1]} 14... Kh7 {[%clk 0:04:14.5]} 15. Re2 {[%clk 0:04:21.7]}
15... b5 {[%clk 0:04:13.5]} 16. a3 {[%clk 0:04:15.4]} 16... Na5 {[%clk 0:04:12]}
17. Rae1 {[%clk 0:04:12]} 17... Nc4 {[%clk 0:04:07.9]} 18. Qc2 {[%clk
0:04:09.2]} 18... a5 {[%clk 0:04:01.5]} 19. Ne5 {[%clk 0:04:05.6]} 19... b4
{[%clk 0:03:50.4]} 20. axb4 {[%clk 0:04:00.1]} 20... axb4 {[%clk 0:03:50.3]} 21.
Nxc4 {[%clk 0:03:58.9]} 21... dxc4 {[%clk 0:03:47.6]} 22. Bxc4 {[%clk
0:03:58.8]} 22... bxc3 {[%clk 0:03:40.5]} 23. bxc3 {[%clk 0:03:58.7]} 23... Rc8
{[%clk 0:03:39.3]} 24. Qd3 {[%clk 0:03:51.4]} 24... Qa5 {[%clk 0:03:28.6]} 25.
Be5 {[%clk 0:03:44.6]} 25... Nd5 {[%clk 0:03:17.9]} 26. Bxg7 {[%clk 0:03:41.2]}
26... Kxg7 {[%clk 0:03:17.8]} 27. Bxd5 {[%clk 0:03:37.6]} 27... Rxc3 {[%clk
0:03:06.9]} 28. Qd2 {[%clk 0:03:22.1]} 28... exd5 {[%clk 0:03:04.1]} 29. Qf4
{[%clk 0:03:20.9]} 29... Qc7 {[%clk 0:02:51.8]} 30. Re5 {[%clk 0:03:18.8]} 30...
Qc6 {[%clk 0:02:36]} 31. h4 {[%clk 0:03:15.2]} 31... Rc8 {[%clk 0:02:24.5]} 32.
h5 {[%clk 0:03:12.8]} 32... g5 {[%clk 0:02:11.8]} 33. Qf5 {[%clk 0:03:11.3]}
33... Rc1 {[%clk 0:02:04.9]} 34. Rxc1 {[%clk 0:03:04.9]} 34... Qxc1+ {[%clk
0:02:04]} 35. Kh2 {[%clk 0:03:04.8]} 35... Qc7 {[%clk 0:01:47.6]} 36. g3 {[%clk
0:02:58.6]} 36... Rd8 {[%clk 0:01:33]} 37. Rxd5 {[%clk 0:02:54.3]} 37... Rxd5
{[%clk 0:01:32.9]} 38. Qxd5 {[%clk 0:02:53.4]} 38... Qc2 {[%clk 0:01:31.9]} 39.
Qe5+ {[%clk 0:02:48.7]} 39... Kg8 {[%clk 0:01:28.1]} 40. Qf6 {[%clk 0:02:44.2]}
40... g4 {[%clk 0:01:13]} 41. d5 {[%clk 0:02:38.9]} 41... Qd3 {[%clk 0:00:52.6]}
42. d6 {[%clk 0:02:36.9]} 42... Qd2 {[%clk 0:00:46.1]} 43. Kg1 {[%clk
0:01:07.3]} 43... Qd1+ {[%clk 0:00:44.3]} 44. Kg2 {[%clk 0:01:06.6]} 44... Qd5+
{[%clk 0:00:43.3]} 45. Kh2 {[%clk 0:01:05.8]} 45... Qd2 {[%clk 0:00:38.4]} 46.
Qf5 {[%clk 0:01:01.2]} 46... Qd4 {[%clk 0:00:24]} 47. d7 {[%clk 0:00:58.6]}
47... Kg7 {[%clk 0:00:23.5]} 48. Kg2 {[%clk 0:00:54.2]} 48... f6 {[%clk
0:00:16.9]} 49. Qe6 {[%clk 0:00:51.7]} 1-0